Cogmind - Beta 16 @@@ ROGUE MODE // 2025.11.05 @ 00:38:23 Player: shapeshifter Result: Self-destructed Performance ------------- Evolutions (3) 1500 Regions Visited (11) 2200 Robots Destroyed (139) 695 Value Destroyed (4334) 4334 Prototype IDs (39) 780 Alien Tech Used (0) 0 Bonus (1972) 1972 TOTAL SCORE: 11481 Bonus ------- High Alert Combat Kills 197 Follower Combat Kills 112 Entered Garrisons 400 Used RIF Installer 1000 Aligned with FarCom 300 Friendly Fire -37 Cogmind --------- Core Integrity 330/700 Matter 39/300 Energy 100/100 System Corruption 0% Temperature Cool (0) Movement Core (1350) Ox26 Location -7/Garrison Parts ------- > --- POWER (1) -------- (None) > --- PROPULSION (4) --- (None) > --- UTILITY (6) ------ Huge Storage Unit Improved Target Analyzer Experimental Core Analyzer > --- WEAPON (2) ------- (None) > --- INVENTORY (25) --- Improved Heat Sink Improved Heat Sink Makeshift Sensor Array Makeshift Terrain Scanner Modified TNC Advanced Launcher Guidance Computer Improved Light Armor Plating Improved Shield Generator Relay Coupler [NC] (34) Relay Coupler [Grunt] (33) Relay Coupler [Duelist] (37) Relay Coupler [Sentry] (25) Relay Coupler [Hunter] (19) Advanced Component Analysis Suite Trap Extractor (0/4) AS-neutralizer No. 17b Heavy Plasma Cannon XL Autogun Array Advanced Assault Cannon Advanced Assault Cannon Longsword +1 Peak State ------------ > --- POWER ------------ Reinforced Fission Core > --- PROPULSION ------- Improved Treads Armored Treads Wheel Wheel > --- UTILITY ---------- Huge Storage Unit Improved Target Analyzer Experimental Core Analyzer Improved Armor Integrity Analyzer Improved Light Armor Plating Improved Light Armor Plating > --- WEAPON ----------- Heavy Plasma Cannon Advanced Assault Cannon > --- INVENTORY -------- Makeshift Sensor Array Makeshift Terrain Scanner Modified TNC Advanced Launcher Guidance Computer Improved Light Armor Plating Improved Shield Generator Relay Coupler [NC] Relay Coupler [Duelist] Relay Coupler [Sentry] Relay Coupler [Hunter] Advanced Component Analysis Suite Trap Extractor AS-neutralizer No. 17b XL Autogun Array Advanced Assault Cannon Advanced Assault Cannon Advanced Assault Cannon Mini Grenade Launcher Longsword +1 [Rating: 63] Favorites ----------- Power Reinforced Fission Core Engine Light Angular Momentum Engine Power Core Reinforced Fission Core Propulsion Wheel Treads Light Treads Leg Aluminum Leg Wheel Wheel Utility Huge Storage Unit Device Heat Sink Storage Huge Storage Unit Processor Experimental Core Analyzer Protection Improved Light Armor Plating Weapon Heavy Particle Cannon Energy Gun Improved Medium Laser Energy Cannon Heavy Particle Cannon Ballistic Gun Hypervelocity Gauss Rifle Ballistic Cannon Advanced Assault Cannon Launcher Mini Grenade Launcher Slashing Weapon Longsword +1 Special Melee Weapon Datajack Build | -11 -10 -10 -9 -9 -9 -8 -8 -8 -8 -7 -7 ------- Run | Yrd Mat Min Mat Min Exi Min Mat Gar Mat Fac Gar Slots Evolved 6 | . . . 2 . . . 2 . . 2 . Power . | . . . . . . . . . . . . Propulsion 2 | . . . . . . . . . . 2 . Utility 4 | . . . 2 . . . 2 . . . . Weapon . | . . . . . . . . . . . . Parts Attached 85 | 7 6 6 14 1 13 2 1 13 15 3 4 Power 9 | 1 2 1 1 . . 1 . . 2 . 1 Engine 7 | 1 2 . 1 . . . . . 2 . 1 Core 2 | . . 1 . . . 1 . . . . . Reactor . | . . . . . . . . . . . . Propulsion 23 | 2 1 3 3 . 1 . . 4 7 1 1 Treads 8 | 2 1 . . . . . . 2 2 . 1 Leg 2 | . . . . . . . . 2 . . . Wheel 13 | . . 3 3 . 1 . . . 5 1 . Hover . | . . . . . . . . . . . . Flight . | . . . . . . . . . . . . Utility 30 | 2 1 1 6 . 6 1 1 6 4 1 1 Device 8 | 1 . 1 3 . . 1 1 1 . . . Storage 5 | 1 1 . 2 . . . . 1 . . . Processor 5 | . . . . . . . . 3 2 . . Hackware . | . . . . . . . . . . . . Protection 12 | . . . 1 . 6 . . 1 2 1 1 Artifact . | . . . . . . . . . . . . Weapon 23 | 2 2 1 4 1 6 . . 3 2 1 1 Energy Gun 2 | . . . 2 . . . . . . . . Energy Cannon 5 | . . . . . 3 . . 1 . 1 . Ballistic Gun 10 | 2 2 1 2 . 1 . . 2 . . . Ballistic Cannon 3 | . . . . . . . . . 2 . 1 Launcher 1 | . . . . 1 . . . . . . . Special Weapon . | . . . . . . . . . . . . Impact Weapon . | . . . . . . . . . . . . Slashing Weapon 1 | . . . . . 1 . . . . . . Piercing Weapon . | . . . . . . . . . . . . Special Melee Weapon 1 | . . . . . 1 . . . . . . Unidentified Prototypes 2 | . . . 2 . . . . . . . . Parts Lost 44 | . 6 4 . . 4 1 . 11 5 3 10 Power 9 | . 2 1 . . 1 1 . . 1 2 1 Propulsion 13 | . 1 2 . . 1 . . 4 . 1 4 Utility 11 | . 1 . . . 1 . . 5 2 . 2 Weapon 11 | . 2 1 . . 1 . . 2 2 . 3 Highest Loss Streak 10 | . 2 4 . . 2 1 . 4 2 3 10 To Critical Strikes 2 | . . 1 . . 1 . . . . . . Average Backups 19 | 3 5 11 23 24 22 20 18 20 21 20 20 Power . | 1 . . . 1 1 . . . 1 . . Propulsion 1 | 1 2 4 2 2 1 . . . 1 . . Utility 11 | . 2 4 13 13 11 15 13 14 12 13 14 Weapon 5 | . . 1 5 6 6 5 5 5 7 6 5 Tool/Special . | . . . . . . . . . . . . Unused Backups 40 | . . . 4 . 11 . . 4 3 . 18 Power 4 | . . . . . 4 . . . . . . Propulsion 1 | . . . . . 1 . . . . . . Utility 28 | . . . 3 . 4 . . 4 1 . 16 Weapon 6 | . . . 1 . 1 . . . 2 . 2 Tool/Special 1 | . . . . . 1 . . . . . . Average Slot Usage (%) 88 | . 89 89 97 100 99 99 95 70 91 82 89 Engine 5 | . 13 9 . . 4 6 . . 8 5 3 Core 4 | . . 1 10 11 6 3 9 9 . . . Treads 7 | . 27 20 . . . . . 2 6 15 17 Wheel 11 | . . 6 22 22 21 22 18 6 9 4 6 Device 8 | . 8 9 21 22 12 11 15 7 1 . . Storage 11 | . 14 14 11 11 11 11 9 14 11 7 7 Processor 9 | . . . . . . . . 7 24 23 23 Protection 10 | . . . 9 11 20 22 24 5 10 10 14 Energy Gun 3 | . . . 15 21 7 . . . . . . Energy Cannon 4 | . . . . . 7 21 18 8 . 6 6 Ballistic Gun 8 | . 25 26 6 . 1 . . 6 12 . . Ballistic Cannon 1 | . . . . . . . . . 4 7 7 Peak Build Rating 63 | 7 7 10 23 22 39 43 52 52 59 63 62 Average Rating 36 | 5 6 7 19 21 28 39 51 45 54 55 58 On Entrance 29 | . 7 7 10 22 22 37 43 52 49 53 56 Avg Prop Armor Cover (%) 10 | . . . . . . . . 9 11 8 10 Naked Turns . | . . . . . . . . . . . . Heaviest Build 124 | 15 30 28 96 96 115 120 124 124 108 109 112 Greatest Support 63 | 40 40 40 20 20 24 24 24 40 43 43 63 Greatest Overweight (x) 39 | . 1 1 4 4 9 4 5 39 10 10 11 Average Overweight (x) 4 | . . . 3 4 4 4 4 8 4 3 7 Largest Inventory Capacity 25 | 8 15 15 25 25 25 25 25 25 25 25 25 Average Capacity 22 | 7 12 15 23 25 25 25 25 25 25 25 25 Most Carried 25 | 5 12 12 25 24 25 25 24 25 25 25 25 Average Carried 21 | 3 5 11 23 24 23 24 22 23 24 23 23 Final Capacity 25 | 8 15 15 25 25 25 25 25 25 25 25 25 Final Carried 25 | 5 12 12 24 24 25 24 22 25 24 22 24 Class Distribution -------------------- 68% | Mutant 31% | Scavenger-Mutant Dominant Class ---------------- Mutant | -10/Materials Mutant | -10/Mines Mutant | -9/Materials Mutant | -9/Mines Mutant | -9/Exiles Mutant | -8/Mines Mutant | -8/Materials Mutant | -8/Garrison Scavenger-Mutant | -8/Materials Scavenger-Mutant | -7/Factory Scavenger-Mutant | -7/Garrison Resources | -11 -10 -10 -9 -9 -9 -8 -8 -8 -8 -7 -7 ----------- Run | Yrd Mat Min Mat Min Exi Min Mat Gar Mat Fac Gar Matter Collected 3500 | 300 267 110 158 80 730 90 . 723 745 114 183 Remotely . | . . . . . . . . . . . . Salvage Created 4845 | 117 633 213 461 106 443 351 . 990 1024 146 361 Parts 324 | 7 47 17 30 9 65 14 . 46 63 6 20 Haulers Intercepted 2 | . . . 1 . . . . . 1 . . Recyclers Shooed 1 | 1 . . . . . . . . . . . Parts Field Recycled . | . . . . . . . . . . . . Retrieved Matter . | . . . . . . . . . . . . Parts Self-Destructed . | . . . . . . . . . . . . Prevented . | . . . . . . . . . . . . Parts Restored . | . . . . . . . . . . . . Kills | -11 -10 -10 -9 -9 -9 -8 -8 -8 -8 -7 -7 ------- Run | Yrd Mat Min Mat Min Exi Min Mat Gar Mat Fac Gar Combat Hostiles Destroyed 106 | . 15 9 13 2 5 6 . 26 14 3 13 Melee 2 | . . . . . 1 . . 1 . . . Guns 58 | . 15 9 13 2 . 2 . 6 11 . . Cannons 24 | . . . . . . 4 . 13 3 1 3 AOE 22 | . . . . . 4 . . 6 . 2 10 Classes Destroyed 18 | 2 4 . 3 1 3 1 . 2 1 . 1 Worker 5 | . 1 . . . . . . . 3 1 . Builder 2 | . . . . . . 1 . . . 1 . Tunneler 5 | 2 1 . . 1 . . . . 1 . . Hauler 2 | . . . 1 . . . . . 1 . . Recycler 3 | 1 . . . . . . . . 2 . . Mechanic 1 | . . . . . . . . . 1 . . Operator 2 | . . . 1 . . . . . 1 . . Turret 1 | . . . . . 1 . . . . . . Watcher 6 | . 3 . 2 . . . . . 1 . . Swarmer 34 | . 3 7 7 . . . . 7 5 . 5 Grunt 41 | . 12 2 5 1 . 5 . 7 3 2 4 Brawler 4 | . . . . . . . . 3 1 . . Duelist 6 | . . . . 1 . 1 . 3 . . 1 Sentry 10 | . . . 1 . . . . 2 5 1 1 Specialist 2 | . . . . . . . . . . . 2 Programmer 3 | . . . . . . . . 3 . . . Zionite 8 | . . . . . 8 . . . . . . Assembled 4 | . . . . . 4 . . . . . . Thug 1 | . . . . . . . . 1 . . . Best Kill Streak 10 | 2 4 5 4 2 8 3 . 4 3 2 10 Combat Bots Only 10 | . 3 5 4 2 4 2 . 4 2 2 10 Max Kills in Single Turn 4 | 1 1 1 1 1 2 1 . 3 2 2 4 Gunslinging . | . . . . . . . . . . . . Exploded 4 | . . . . . 2 . . 3 . 2 4 Melee 1 | . . . . . 1 . . 1 . . . Uniques/NPCs Destroyed 4 | . . . . . 4 . . . . . . 8R-AWN (-9/Exiles) EX-BIN (-9/Exiles) EX-HEX (-9/Exiles) EX-DEC (-9/Exiles) Combat | -11 -10 -10 -9 -9 -9 -8 -8 -8 -8 -7 -7 -------- Run | Yrd Mat Min Mat Min Exi Min Mat Gar Mat Fac Gar Hostile Shots Fired 746 | . 104 56 30 5 65 45 . 124 94 77 146 Missed 222 | . 26 15 10 2 10 11 . 41 30 25 52 Hits 524 | . 78 41 20 3 55 34 . 83 64 52 94 Melee 28 | . . . . 1 1 . . 18 2 . 6 Projectile 496 | . 78 41 20 2 54 34 . 65 62 52 88 Critical Strikes 34 | . 1 1 . . 20 1 . 7 . 3 1 Damage Taken 7878 | . 844 408 174 52 1015 574 . 1652 833 605 1721 Core 1343 | . 63 137 33 10 130 124 . 324 152 . 370 Absorbed by Shields . | . . . . . . . . . . . . Redirected to Shielding 103 | . . . . . . . . . 103 . . Core Remaining (%) 39 | 100 . 20 . . . 25 . . 13 . . Volleys Fired 457 | 5 79 30 29 11 74 25 . 76 72 30 26 Largest 2 | 2 2 2 2 2 2 2 . 2 2 1 2 Hottest 150 | 40 40 40 112 112 112 150 . 150 80 90 90 Shots Fired 688 | 10 115 53 58 19 75 42 . 117 140 30 29 Gun 475 | 10 115 53 58 16 67 8 . 24 124 . . Cannon 183 | . . . . . . 34 . 87 16 26 20 Launcher 30 | . . . . 3 8 . . 6 . 4 9 Special . | . . . . . . . . . . . . Kinetic 435 | 10 115 53 8 . 65 8 . 24 140 1 11 Thermal 223 | . . . 50 16 2 34 . 87 . 25 9 Explosive 30 | . . . . 3 8 . . 6 . 4 9 Electromagnetic . | . . . . . . . . . . . . Robot Hit Streak 13 | 9 10 5 13 9 4 7 . 10 10 8 7 Robot Miss Streak 10 | . 4 3 3 2 10 6 . 4 5 3 1 Penetration Max 2 | . . . . . 1 . . 2 1 . . Secondary Targets 7 | . 1 2 3 . . . . . 1 . . Max Gunslinging Chain 1 | . 1 1 1 . . . . . 1 . . Shots Hit Robots 436 | 9 77 31 36 12 71 26 . 61 82 19 12 Core Hits 243 | 4 36 17 20 4 31 13 . 42 42 9 25 Critical Kills 22 | . . . . . 4 2 . 3 13 . . Critical Parts Destroyed 39 | . 1 . . . 14 1 . 2 21 . . Critical Strikes 73 | . 1 . 2 2 21 3 . 6 37 . 1 Burn 4 | . . . 2 2 . . . . . . . Destroy 64 | . 1 . . . 18 3 . 6 36 . . Blast 2 | . . . . . . . . . 1 . 1 Sever 3 | . . . . . 3 . . . . . . Melee Attacks 44 | . . . . . 39 . . 5 . . . Impact . | . . . . . . . . . . . . Slashing 40 | . . . . . 35 . . 5 . . . Piercing . | . . . . . . . . . . . . Sneak Attacks 4 | . . . . . 4 . . . . . . Combat Hostiles . | . . . . . . . . . . . . Follow-up Attacks . | . . . . . . . . . . . . Damage Inflicted 9904 | 107 805 256 560 203 2510 633 . 2018 867 821 1124 Guns 3504 | 107 805 256 560 203 686 61 . 250 576 . . Cannons 2835 | . . . . . . 572 . 1147 257 566 293 Explosions 1813 | . . . . . 264 . . 463 . 255 831 Melee 1718 | . . . . . 1560 . . 158 . . . Ramming 34 | . . . . . . . . . 34 . . Kinetic 3191 | 107 805 256 50 . 670 61 . 250 833 . 159 Thermal 3148 | . . . 510 203 16 572 . 1147 . 566 134 Explosive 1813 | . . . . . 264 . . 463 . 255 831 Electromagnetic . | . . . . . . . . . . . . Impact . | . . . . . . . . . . . . Slashing 1718 | . . . . . 1560 . . 158 . . . Piercing . | . . . . . . . . . . . . Highest Corruption 15 | . 1 1 . . . . . 8 15 . . Average Corruption 9 | . 1 1 . . . . . 7 13 . . Corruption Purged . | . . . . . . . . . . . . Corruption Blocked . | . . . . . . . . . . . . Effects 148 | . . 5 . . . . . 61 82 . . Message Errors 35 | . . . . . . . . 18 17 . . Matter Fused 32 | . . 2 . . . . . 14 16 . . Heat Flow Errors 19 | . . . . . . . . 6 13 . . Energy Discharges 16 | . . 1 . . . . . 7 8 . . Parts Fused 4 | . . . . . . . . 1 3 . . Data Loss (minor) 25 | . . 2 . . . . . 9 14 . . Data Loss (major) 7 | . . . . . . . . 2 5 . . Misfires 5 | . . . . . . . . 3 2 . . Misdirections 3 | . . . . . . . . . 3 . . Weapon Failures 2 | . . . . . . . . 1 1 . . Overload Shots . | . . . . . . . . . . . . Overflow Damage 91 | . . . . . 46 . . 8 14 17 6 Projectiles 17 | . . . . . . . . . . 17 . Explosions 24 | . . . . . 18 . . . . . 6 Melee 50 | . . . . . 28 . . 8 14 . . Knockbacks 4 | . . . . . . . . . 2 . 2 Impact . | . . . . . . . . . . . . Kinetic 4 | . . . . . . . . . 2 . 2 Secondary . | . . . . . . . . . . . . Self-Inflicted Damage 136 | . . . . . 8 . . . 17 37 74 Shots 5 | . . . . . 1 . . . . 1 3 Rammed 1 | . . . . . . . . . 1 . . Targets Rammed 1 | . . . . . . . . . 1 . . Kicked . | . . . . . . . . . . . . Crushed . | . . . . . . . . . . . . Highest Temperature 363 | . 21 10 120 108 27 309 . 363 288 354 106 Average Temperature 99 | . 6 6 37 38 14 131 . 130 96 130 33 Received Heat Transfer 1903 | . 399 117 18 12 49 324 . 240 234 318 192 Effects 6 | . . . . . . . . 2 2 2 . Energy Bleed 3 | . . . . . . . . 1 . 2 . Interference 2 | . . . . . . . . . 2 . . Short Circuit 1 | . . . . . . . . 1 . . . Siege Activations . | . . . . . . . . . . . . Martial Activations . | . . . . . . . . . . . . Shielding Activations . | . . . . . . . . . . . . Robots Disrupted . | . . . . . . . . . . . . Combat Hostiles . | . . . . . . . . . . . . Robots Corrupted 1 | . . . . . . . . . 1 . . Combat Hostiles . | . . . . . . . . . . . . Parts Fried . | . . . . . . . . . . . . Impact Corruptions 1 | . . . . . . . . . 1 . . Robots Melted . | . . . . . . . . . . . . Combat Hostiles . | . . . . . . . . . . . . Parts Melted 7 | . . . 2 1 . . . 2 . 2 . Heat Transferred 5342 | . . . 1258 592 37 814 . 1591 . 850 200 Parts Sabotaged . | . . . . . . . . . . . . Parts Stolen . | . . . . . . . . . . . . Parts Stripped . | . . . . . . . . . . . . Power Chain Reactions . | . . . . . . . . . . . . Alert | -11 -10 -10 -9 -9 -9 -8 -8 -8 -8 -7 -7 ------- Run | Yrd Mat Min Mat Min Exi Min Mat Gar Mat Fac Gar Maximum Alert Level 4 | . . . . . . . . 4 2 . 1 Low Security (%) 73 | 100 100 100 100 100 . 100 100 9 85 100 96 Level 1 3 | . . . . . . . . 6 5 . 3 Level 2 10 | . . . . . . . . 32 9 . . Level 3 10 | . . . . . . . . 42 . . . Level 4 2 | . . . . . . . . 9 . . . Level 5 . | . . . . . . . . . . . . High Security . | . . . . . . . . . . . . Max Security . | . . . . . . . . . . . . Peak Influence 1208 | 5 190 83 166 53 . 81 6 1208 594 86 303 Initial 588 | . . 42 26 53 . . 6 2 588 86 22 Average 237 | 1 68 32 65 9 . 30 3 677 178 32 95 Influence Increases 3815 | 15 521 211 342 76 . 162 4 1316 579 148 441 Destroy 0b10 Robot/C 2060 | . 300 180 260 40 . 120 . 560 280 60 260 Destroy 0b10 Robot/NC 130 | 15 25 . 20 5 . 5 . . 50 10 . Destroy Leader 316 | . 76 20 46 10 . 20 . 20 84 20 20 Allied During Kill 38 | . . 11 . . . . . 4 . . 23 Successful Hack 106 | . 45 . 15 . . 5 4 . 23 . 14 Select Force Hacks 30 | . 30 . . . . . . . . . . Disable Machine 45 | . . . . . . . . . 15 15 15 Anti-Garrison Action 700 | . . . . . . . . 650 . . 50 Destroy Structure 165 | . . . 1 21 . 12 . 67 7 28 29 Lose Combat Pursuer 225 | . 45 . . . . . . 15 120 15 30 Influence Decreases 3512 | 15 413 252 271 214 . 144 18 112 1596 307 170 Entered New Map 941 | . . 66 41 85 . . 12 2 620 105 10 Time Decay 1842 | 15 363 146 230 129 . 134 6 . 626 193 . Lost Part 369 | . 50 40 . . . 10 . 110 50 9 100 Lost Ally 60 | . . . . . . . . . . . 60 Purge Threat 300 | . . . . . . . . . 300 . . Squads Dispatched 8 | . 4 . 2 . . . . . . 2 . Investigation 3 | . 2 . 1 . . . . . . . . Extermination . | . . . . . . . . . . . . Reinforcement 5 | . 2 . 1 . . . . . . 2 . Assault . | . . . . . . . . . . . . Garrison . | . . . . . . . . . . . . Intercept . | . . . . . . . . . . . . Searches Triggered . | . . . . . . . . . . . . Construction Impeded 1 | . . . . . . . . . . 1 . Haulers Reinforced . | . . . . . . . . . . . . Active Scanning Responses . | . . . . . . . . . . . . Cargo Convoy Interrupts . | . . . . . . . . . . . . Stealth | -11 -10 -10 -9 -9 -9 -8 -8 -8 -8 -7 -7 --------- Run | Yrd Mat Min Mat Min Exi Min Mat Gar Mat Fac Gar Distress Signals . | . . . . . . . . . . . . Communications Jammed 4 | . . . . . . . 4 . . . . Distress Signals 4 | . . . . . . . 4 . . . . Times Spotted 164 | . 24 11 15 2 15 6 4 28 29 7 23 Peak Tracking Total 17 | . 3 5 4 2 10 3 4 6 3 4 17 Tactical Retreats 14 | . 2 . . . 2 . . 1 7 1 1 Traps | -11 -10 -10 -9 -9 -9 -8 -8 -8 -8 -7 -7 ------- Run | Yrd Mat Min Mat Min Exi Min Mat Gar Mat Fac Gar Traps Triggered 16 | . 2 . 1 . . . . 8 2 1 2 Indirectly . | . . . . . . . . . . . . Trap Hack Attempts . | . . . . . . . . . . . . Triggered . | . . . . . . . . . . . . Disarmed . | . . . . . . . . . . . . Reprogrammed . | . . . . . . . . . . . . Reused . | . . . . . . . . . . . . Traps Extracted . | . . . . . . . . . . . . Installed . | . . . . . . . . . . . . Triggered . | . . . . . . . . . . . . Machines | -11 -10 -10 -9 -9 -9 -8 -8 -8 -8 -7 -7 ---------- Run | Yrd Mat Min Mat Min Exi Min Mat Gar Mat Fac Gar Machines Disabled 22 | . . . 1 . 14 . . 3 1 1 2 Max in Single Turn 2 | . . . 1 . 2 . . 2 1 1 1 Garrison Relay 2 | . . . . . . . . 1 . . 1 Phase Generator 1 | . . . . . . . . 1 . . . Machines Repaired . | . . . . . . . . . . . . Machines Dismantled . | . . . . . . . . . . . . Machines Sabotaged . | . . . . . . . . . . . . Overloaded Fab Kills . | . . . . . . . . . . . . Hacking | -11 -10 -10 -9 -9 -9 -8 -8 -8 -8 -7 -7 --------- Run | Yrd Mat Min Mat Min Exi Min Mat Gar Mat Fac Gar Machines Accessed 31 | . 8 1 5 . 2 1 1 3 8 1 1 Terminals 23 | . 7 1 4 . . 1 . 3 6 . 1 Fabricators . | . . . . . . . . . . . . Repair Stations . | . . . . . . . . . . . . Recycling Units 2 | . 1 . . . . . . . 1 . . Scanalyzers 2 | . . . 1 . . . . . 1 . . Garrison Access 2 | . . . . . . . 1 . . 1 . Total Hacks 72 | . 24 2 11 . 2 1 1 6 22 1 2 Successful 39 | . 12 1 4 . 2 1 1 . 16 1 1 Failed 33 | . 12 1 7 . . . . 6 6 . 1 Catastrophic 6 | . 1 . 2 . . . . 2 1 . . Database Lockouts . | . . . . . . . . . . . . Manual 39 | . 15 . 5 . 1 . . . 18 . . Terminals 61 | . 22 2 9 . . 1 . 6 19 . 2 Fabricators . | . . . . . . . . . . . . Repair Stations . | . . . . . . . . . . . . Recycling Units 4 | . 2 . . . . . . . 2 . . Scanalyzers 3 | . . . 2 . . . . . 1 . . Garrison Access 2 | . . . . . . . 1 . . 1 . Terminal Hacks 18 | . 5 1 2 . 2 1 . . 6 . 1 Record 1 | . . . . . 1 . . . . . . Robot Analysis 2 | . 2 . . . . . . . . . . Branch Access Points 2 | . 1 . 1 . . . . . . . . Terminal Index 2 | . 1 . . . . . . . 1 . . Unreport Threat 2 | . . . . . . . . . 2 . . Zone Layout 7 | . 1 1 1 . . 1 . . 3 . . Patrol Navigation 1 | . . . . . . . . . . . 1 Proto ID Catalog 1 | . . . . . 1 . . . . . . Fabricator Hacks . | . . . . . . . . . . . . Repair Station Hacks . | . . . . . . . . . . . . Recycling Unit Hacks 1 | . . . . . . . . . 1 . . Retrieve Components 1 | . . . . . . . . . 1 . . Scanalyzer 3 | . . . 2 . . . . . 1 . . Retrieve Study 3 | . . . 2 . . . . . 1 . . Garrison Access Hacks 2 | . . . . . . . 1 . . 1 . Unlock Access 2 | . . . . . . . 1 . . 1 . Unauthorized Hacks 15 | . 7 . . . . . . . 8 . . Terminals 14 | . 6 . . . . . . . 8 . . Botnet 2 | . . . . . . . . . 2 . . Skim 12 | . 6 . . . . . . . 6 . . Fabricators . | . . . . . . . . . . . . Repair Stations . | . . . . . . . . . . . . Recycling Units 1 | . 1 . . . . . . . . . . Tunnel 1 | . 1 . . . . . . . . . . Scanalyzers . | . . . . . . . . . . . . Garrison Access . | . . . . . . . . . . . . Data Cores Recovered 1 | . . . . . . . . . 1 . . Used . | . . . . . . . . . . . . Hacking Detections 26 | . 8 1 5 . . 1 1 3 6 . 1 Full Trace Events 1 | . . . . . . . . 1 . . . Feedback Events . | . . . . . . . . . . . . Feedback Blocked . | . . . . . . . . . . . . Robot Schematics Acquired . | . . . . . . . . . . . . Robots Built . | . . . . . . . . . . . . Authchips . | . . . . . . . . . . . . Time . | . . . . . . . . . . . . Total Robot Build Rating . | . . . . . . . . . . . . Part Schematics Acquired . | . . . . . . . . . . . . Parts Built . | . . . . . . . . . . . . Authchips . | . . . . . . . . . . . . Time . | . . . . . . . . . . . . Total Part Build Rating . | . . . . . . . . . . . . Part Studies Acquired 3 | . . . 2 . . . . . 1 . . Parts Repaired . | . . . . . . . . . . . . Time . | . . . . . . . . . . . . Parts Recycled . | . . . . . . . . . . . . Recycled Matter . | . . . . . . . . . . . . Retrieved Matter . | . . . . . . . . . . . . Retrieved Components 10 | . . . . . . . . . 10 . . Parts Scanalyzed . | . . . . . . . . . . . . Part Schematics Acquired . | . . . . . . . . . . . . Parts Damaged . | . . . . . . . . . . . . Bothacking | -11 -10 -10 -9 -9 -9 -8 -8 -8 -8 -7 -7 ------------ Run | Yrd Mat Min Mat Min Exi Min Mat Gar Mat Fac Gar Used RIF Installer 2 | . . . . . . . . 1 . . 1 Alert ID Control 1 | . . . . . . . . . . . 1 Robots Hacked 4 | . . . . . 4 . . . . . . Non-combat 3 | . . . . . 3 . . . . . . Combat 1 | . . . . . 1 . . . . . . Robot Hacks Applied 4 | . . . . . 4 . . . . . . parse_system 4 | . . . . . 4 . . . . . . Relay Couplers Released 8 | . . . . . . . . 3 . . 5 Machine Destruction 8 | . . . . . . . . 3 . . 5 Fabnet Peak Effective % . | . . . . . . . . . . . . Robots Rewired 3 | . . . . . . . . . . . 3 Allies Hacked . | . . . . . . . . . . . . Hacks Repelled . | . . . . . . . . . . . . Allies | -11 -10 -10 -9 -9 -9 -8 -8 -8 -8 -7 -7 -------- Run | Yrd Mat Min Mat Min Exi Min Mat Gar Mat Fac Gar Total Allies 9 | . . 2 . 3 . . . 1 . . 3 Largest Group 3 | . . 2 . 3 3 . . 1 . . 3 Highest-Rated Group 60 | . . 42 . 40 40 . . 31 . . 60 Highest-Rated Ally 31 | . . 31 . 16 16 . . 31 . . 20 Total Orders 3 | . . . . . 3 . . . . . . STAY 2 | . . . . . 2 . . . . . . FOLLOW 1 | . . . . . 1 . . . . . . Ally Attacks 37 | . . 2 . . 12 . . 18 . . 5 Total Damage 1086 | . . 42 . . 29 . . 957 . . 58 Kills 2 | . . . . . . . . 2 . . . Allies Corrupted . | . . . . . . . . . . . . Allies Melted . | . . . . . . . . . . . . Turrets Deployed 1 | . . . . . . . . 1 . . . Intel | -11 -10 -10 -9 -9 -9 -8 -8 -8 -8 -7 -7 ------- Run | Yrd Mat Min Mat Min Exi Min Mat Gar Mat Fac Gar Active Infowar (turns) 3456 | 34 724 381 670 730 358 . 32 527 . . . Structural 1728 | . . . 640 730 358 . . . . . . Seismic 1405 | 34 724 381 266 . . . . . . . . Jamming 559 | . . . . . . . 32 527 . . . Robot Analysis Total 2 | . 2 . . . . . . . . . . Derelict Logs Recovered 2 | . . 1 . 1 . . . . . . . Drone Launches . | . . . . . . . . . . . . Drone Recoveries . | . . . . . . . . . . . . Exploration | -11 -10 -10 -9 -9 -9 -8 -8 -8 -8 -7 -7 ------------- Run | Yrd Mat Min Mat Min Exi Min Mat Gar Mat Fac Gar Turns Passed 11740 | 120 1268 550 670 730 1865 447 35 2496 2150 564 845 Spaces Moved 5151 | 62 632 313 420 504 1037 239 20 605 812 176 331 Core 56 | 11 . . . . . . . 45 . . . Treads 1317 | 51 632 211 . . . . . 68 96 140 119 Legs 42 | . . . . . . . . 24 18 . . Wheels 3736 | . . 102 420 504 1037 239 20 468 698 36 212 Hover . | . . . . . . . . . . . . Flight . | . . . . . . . . . . . . Fastest Speed 50 | 50 160 95 85 130 130 150 150 150 130 145 220 Average Speed 181 | 140 160 139 121 130 140 150 164 353 174 268 224 Slowest Speed 2000 | 160 240 240 130 130 225 150 165 2000 570 285 235 Overloaded Moves . | . . . . . . . . . . . . Propulsion Burnouts . | . . . . . . . . . . . . Robots Hopped 1 | . . . . . 1 . . . . . . Potential Cave-ins . | . . . . . . . . . . . . Cave-ins Triggered . | . . . . . . . . . . . . Exploration Rate (%) 52 | 4 91 78 36 98 90 51 6 79 63 8 28 Regions Visited 11 Branch Regions 4 Pre-discovered Areas 7 | . 1 1 . 1 1 . . . 3 . . Known Exits Taken 5 | . 1 1 1 . . . 1 . . 1 . Unknown Exits Taken 5 | 1 . . . 1 1 1 . . 1 . . Scrap Searched 3 | . . 1 . 2 . . . . . . . Spaces Dug 5 | . . . . . . . . . 1 1 3 Terrain Destroyed 256 | . . . . 33 39 15 . 111 7 33 18 Melee . | . . . . . . . . . . . . Projectile 40 | . . . . . 4 15 . 9 6 6 . AOE 214 | . . . . 33 35 . . 101 . 27 18 Terrain Rammed . | . . . . . . . . . . . . Walls Destroyed . | . . . . . . . . . . . . Machines Disabled . | . . . . . . . . . . . . Actions | -11 -10 -10 -9 -9 -9 -8 -8 -8 -8 -7 -7 --------- Run | Yrd Mat Min Mat Min Exi Min Mat Gar Mat Fac Gar Total 6858 | 85 779 385 526 558 1330 285 22 843 1408 236 401 Wait 797 | . 49 30 15 41 108 16 . 38 478 18 4 Move 5140 | 61 631 312 419 503 1034 238 20 604 811 176 331 Hop 1 | . . . . . 1 . . . . . . Pick Up 122 | 12 13 6 27 . 25 1 . 20 10 2 6 Fast Attach 24 | . . . 5 . . . . 6 12 1 . Attach 57 | 7 5 5 5 . 9 1 2 11 6 3 3 Detach 1 | . . . . . . . . 1 . . . Swap 57 | . 1 1 7 3 17 3 . 15 3 3 4 Drop 73 | . 1 1 19 . 23 1 . 11 15 1 1 Fire 457 | 5 79 30 29 11 74 25 . 76 72 30 26 Melee 44 | . . . . . 39 . . 5 . . . Ram 1 | . . . . . . . . . 1 . . Kick . | . . . . . . . . . . . . Crush . | . . . . . . . . . . . . Escape Stasis 74 | . . . . . . . . 56 . 2 16 Rewire 10 | . . . . . . . . . . . 10 Trap . | . . . . . . . . . . . . Miscellaneous . | . . . . . . . . . . . . Route ------- -11/Scrapyard -10/Materials (discovered 4 exits: *Mat x3 / *Min) -10/Mines (discovered 3 exits: *Mat x2 / Sub) -9/Materials (discovered 3 exits: *Mat / *Min x2) -9/Mines (discovered 3 exits: *Mat x2 / *Exi) -9/Exiles -8/Mines -8/Materials -8/Garrison (discovered 2 exits: *Mat x2) -8/Materials (discovered 3 exits: *Fac x3) -7/Factory (discovered 4 exits: Fac x2 / [*Low] / Gar) -7/Garrison History --------- Turn | Location | Event 22 | -11/Scrapyard | Discovered new exit (range 16) 121 | -11/Scrapyard | Entered Materials 312 | -10/Materials | Build established: Mutant 336 | -10/Materials | Discovered new exit (range 3) 360 | -10/Materials | Discovered new exit (range 16) 497 | -10/Materials | Discovered new exit (range 15) 915 | -10/Materials | Identified exit to Mines 1236 | -10/Materials | Discovered new exit (range 15) 1338 | -10/Materials | Learned location of 2 exits from Mines 1389 | -10/Materials | Entered Mines 1390 | -10/Mines | Identified exit to Materials 1390 | -10/Mines | Identified exit to Subcaves 1416 | -10/Mines | Learned location of Storage (-7) 1461 | -10/Mines | Discovered exit to Materials (range 3) 1584 | -10/Mines | Learned 2 Materials zone layouts 1794 | -10/Mines | Core integrity fell below 50% 1822 | -10/Mines | Lost 4 parts (1p2n1w) 1846 | -10/Mines | Found a hidden stash of uninstalled traps 1939 | -10/Mines | Entered Materials 1939 | -9/Materials | Evolved 2 slots: Utility x2 2282 | -9/Materials | Discovered new exit (range 3) 2339 | -9/Materials | Identified exit to Mines 2609 | -9/Materials | Entered Mines 2641 | -9/Mines | Met a Derelict bent on vengeance 2642 | -9/Mines | Found a Scrap Suit stashed away for nefarious purposes 2662 | -9/Mines | Discovered new exit (range 8) 3081 | -9/Mines | Learned location of Zion (-6) 3097 | -9/Mines | Discovered new exit (range 11) 3139 | -9/Mines | Assisted by bots powering up and referring to "LRC-V3" 3314 | -9/Mines | Deemed a non-threat by the Exiles lab entrance 3314 | -9/Mines | Discovered new exit (range 5) 3339 | -9/Mines | Entered Exiles 3339 | -9/Exiles | Accompanied by 3 allies 3372 | -9/Exiles | Met 8R-AWN 3397 | -9/Exiles | Met EX-HEX 3445 | -9/Exiles | Met EX-DEC 3561 | -9/Exiles | Met EX-BIN 3645 | -9/Exiles | Aligned with FarCom system 3646 | -9/Exiles | Given EX-Vault access code 3676 | -9/Exiles | Opened EX-Vault 3683 | -9/Exiles | Found Modified TNC 3688 | -9/Exiles | Found Longsword +1 3700 | -9/Exiles | Found XL Autogun Array 3729 | -9/Exiles | Warned to stay clear of 0b10 Research branches 3841 | -9/Exiles | Discovered new exit (range 14) 4346 | -9/Exiles | Attacked by the Exiles 4471 | -9/Exiles | Lost 3 allies 4521 | -9/Exiles | Destroyed 8R-AWN 4526 | -9/Exiles | Found AS-neutralizer No. 17b 4531 | -9/Exiles | Found Exp. Targeting Computer 4534 | -9/Exiles | Found 8R-AWN's Boregun 4779 | -9/Exiles | Destroyed EX-BIN 4808 | -9/Exiles | Destroyed EX-HEX 4927 | -9/Exiles | Destroyed EX-DEC 5033 | -9/Exiles | Found Deploy-a-Sentry 5047 | -9/Exiles | Found Exp. Core Analyzer 5204 | -9/Exiles | Stole four prototypes: Modified TNC, XL Autogun Array, Longsword +1, Deploy-a-Sentry 5204 | -9/Exiles | Entered Mines 5387 | -8/Mines | Core integrity fell below 50% 5630 | -8/Mines | Discovered new exit (range 9) 5651 | -8/Mines | Entered Materials 5651 | -8/Materials | Evolved 2 slots: Utility x2 5686 | -8/Materials | Identified exit to Garrison 5686 | -8/Materials | Entered Garrison 5704 | -8/Garrison | Triggered checkpoint 5796 | -8/Garrison | Garrison Relay disabled 5939 | -8/Garrison | Phase Generator disabled 6148 | -8/Garrison | Rescued a captive Derelict 6150 | -8/Garrison | Rescued a captive Derelict 6208 | -8/Garrison | P-60 Hacker assimilated allied BQ-3OE(g) 6261 | -8/Garrison | Lost 4 parts (1n3u) 6362 | -8/Garrison | Discovered new exit (range 10) 6870 | -8/Garrison | Installed Relay Interface Framework 7003 | -8/Garrison | Discovered new exit (range 14) 7116 | -8/Garrison | Spotted B-75 Beast 7116 | -8/Garrison | Spotted B-75 Beast 7130 | -8/Garrison | DAS Turret deployed 7132 | -8/Garrison | Core integrity fell below 50% 7152 | -8/Garrison | Allies destroyed B-75 Beast 7166 | -8/Garrison | Allies destroyed B-75 Beast 7183 | -8/Garrison | Lost 4 parts (2n2w) 8182 | -8/Garrison | Entered Materials 8602 | -8/Materials | Discovered new exit (range 16) 8710 | -8/Materials | System corruption reached 10% 8744 | -8/Materials | Build established: Scavenger-Mutant 9441 | -8/Materials | Core integrity fell below 20% 9488 | -8/Materials | Discovered new exit (range 7) 9781 | -8/Materials | Discovered new exit (range 15) 10029 | -8/Materials | Learned location of Extension (-5) 10078 | -8/Materials | Learned Storage emergency access door positions 10116 | -8/Materials | Learned Storage emergency access door positions 10183 | -8/Materials | Learned location of Lower Caves (-6) 10332 | -8/Materials | Entered Factory 10332 | -7/Factory | Evolved 2 slots: Propulsion x2 10333 | -7/Factory | Identified exit to Factory 10633 | -7/Factory | Discovered new exit (range 16) 10783 | -7/Factory | Lost 3 parts (2p1n) 10896 | -7/Factory | Identified exit to Garrison 10896 | -7/Factory | Entered Garrison 11304 | -7/Garrison | Triggered checkpoint 11386 | -7/Garrison | Garrison Relay disabled 11499 | -7/Garrison | Expanded RIF knowledge: Alert ID Control 11694 | -7/Garrison | Triggered checkpoint 11715 | -7/Garrison | Triggered checkpoint 11723 | -7/Garrison | Triggered checkpoint 11741 | -7/Garrison | Core integrity fell below 50% 11741 | -7/Garrison | Self-destructed Last Messages --------------- 11721_ Gladiator 4a destroyed. 11723_ Imp. Light Armor Plating destroyed. 11723_ Imp. Deuterium Engine destroyed. 11723_ Beams of light sweep through the air. An alarm sounds. 11729_ L-41 Fighter knocked back. 11729_ Gladiator 4b suffers critical hit (Smash). 11731_ Imp. Light Armor Plating destroyed. 11731_ Adv. Assault Cannon destroyed. 11732_ Gladiator 4b destroyed. 11733_ Adv. Assault Cannon destroyed. 11733_ Gladiator 4c destroyed. 11734_ Arm. Treads destroyed. 11735_ L-41 Fighter destroyed. 11735_ X-67 Chaingunner destroyed. 11735_ Lgt. Treads destroyed. 11737_ X-67 Chaingunner destroyed. 11737_ G-47 Trooper destroyed. 11739_ Mni. Grenade Launcher destroyed. 11739_ Destroyed Mni. Grenade Launcher. 11740_ Imp. Armor Integrity Analyzer severed. Map ----- +----------------------------------------------------+ | ?????????????????????????????????????????????????? | | ##################???????????????????????????????? | | #???????????????????????????????? | | #???????????????????????????????? | | ### ######### #???????????????????????????????? | | ??# #???????# #???????????????????????????????? | | ??#####???????# #???????????????????????????????? | | ??????????????# #???????????????????????????????? | | ??????????????# #???????????????????????????????? | | ??????????????# #???????????????????????????????? | | ??????????????# #???????? #????????????????????? | | ??????????????# #???????? #????????????????????? | | ??????????????# #???????? #????????????????????? | | ??????????????# #???????? #????????????????????? | | ??????????????# #???????? #????????????????????? | | ??????????????# #???????? #????????????????????? | | ??????????????# #???????? #????????????????????? | | ??????????????# #???????# #????????????????????? | | ??????????????# #???????# #?????#??????????????? | | ??????????????# #???????# #???#+#??????????????? | | ??????????????# #???????# #?? #?? T??????????? | | ??????????????# #??????## ## # ##?????????? | | ############### ######## #?????????? | | " = %= [[ s ????????? | | # /%lb #?????????? | | ######################## @ # #??????????????? | | ???????????????????????## % #???????????????????? | | ??????????????????????# ?????????????????? | | ??????????????????????# % % ?????????????? | | ??????????????????????# = = s "?????????? | | ??????????????????????# %= g s"?????????? | | ??????????????????????###% # ^^## #?????????? | | ???????????????????????? #??? #?????????? | | ???????????????????????? sY?????????????? | | ????????????????????????# s ????????????? | | ????????????????????????# Y ???????????? | | ????????????????????????## # " ####???????????? | | ?????????????????????????? ## ?#??????????????? | | ?????????????????????????? #??##????????????????? | | ?????????????????????????? #????????????????????? | | ?????????????????????????? ?????????????????????? | | ?????????????????????????? ?????????????????????? | | ?????????????????????????????????????????????????? | | ?????????????????????????????????????????????????? | | ?????????????????????????????????????????????????? | | ?????????????????????????????????????????????????? | | ?????????????????????????????????????????????????? | | ?????????????????????????????????????????????????? | | ?????????????????????????????????????????????????? | | ?????????????????????????????????????????????????? | +----------------------------------------------------+ Best States ------------- Heat Dissipation 50 Energy Generation 19 Energy Capacity 310 Matter Stores 500 Matter Capacity 500 Sight Range 16 Terrain Scan Density 10 Jamming Range 16 Armor Coverage 675 Propulsion Shielding 66 Evasion (%) 50 Targeting Accuracy 12 Target Analysis 6 Core Analysis 8 Armor Integrity Analysis 40 Recoil Reduction 3 Item Schematics ----------------- None Robot Schematics ------------------ None Fabricated ------------ Nothing Repaired ---------- Nothing Studied --------- Wheel | -9/Materials | Hacked Lgt. Assault Rifle | -9/Materials | Hacked Imp. Treads | -8/Materials | Hacked Alien Tech Used ----------------- None Achievements -------------- None Challenges ------------ None Game ------ Seed PlasmaTiamatFacilitator Manual? 0 Play Time 00:57:46 Cumulative 468.4 hours Start 2025.11.04 @ 06:23:01 End 2025.11.05 @ 00:38:23 Sessions 5 Manual Loads 0 Difficulty Rogue Special Mode None Game No. 588 Rogue 588 Adventurer 0 Explorer 0 Win Type - Total 14 Types 6/0/2/2/1/0/2/1/0/0 Lore% 90 Gallery% 85 Achievement% 63 Wizard Run 0 Options --------- Layout 0 ASCII 0 Keyboard 0 Movement Mouse Keybinds 0 Fullscreen 1 Font 24/Terminus Map View 76x50 Zoom Use 0% Tactical HUD 1 Map Filters NONE Filters NONE Steam 1 RUN: 72e9248a-5cee-403f-afec-bcab38bb450b